fUSD/lending_fUSD_20260203
["ID","MTS","AMOUNT","RATE_DAILY","PERIOD"]
[404370792,1770082243001,-787.0,0.00010582,2]
[404370793,1770082243010,-1370.0,0.00010582,2]
[404370794,1770082243018,-737.0,0.00010582,2]
[404370795,1770082243027,-691.0,0.00010582,2]
[404370796,1770082243036,-1636.55284034,0.00010621,3]
[404370797,1770082243045,-1000.0,0.00010622,2]
[404370798,1770082243054,-726.83579927,0.00010622,2]
[404370799,1770082243064,-1000.0,0.00010622,2]
[404370800,1770082243074,-1000.0,0.00010622,2]
[404370801,1770082243083,-1000.0,0.00010622,2]
[404370802,1770082243096,-1000.0,0.00010622,2]
[404370803,1770082243106,-1000.0,0.00010622,2]
[404370804,1770082243115,-1000.0,0.00010622,2]
[404370805,1770082243124,-411.8365552,0.00010622,2]
[404370806,1770082243134,-846.7110441,0.00010622,2]
[404370807,1770082243143,-1064.89867821,0.00010622,2]
[404370808,1770082243152,-1000.0,0.00010622,2]
[404370809,1770082243161,-1000.0,0.00010622,2]
[404370810,1770082243170,-1000.0,0.00010622,2]
[404370811,1770082243180,-152.81544497,0.00010622,2]
[404370812,1770082243193,-1006.79391477,0.00010622,2]
[404370813,1770082243202,-1000.0,0.00010622,2]
[404370814,1770082243211,-1000.0,0.00010622,2]
[404370815,1770082243220,-1000.0,0.00010622,2]
[404370816,1770082243230,-1000.0,0.00010622,2]
[404370817,1770082243239,-1000.0,0.00010622,2]
[404370818,1770082243247,-1000.0,0.00010622,2]
[404370819,1770082243257,-802.41767568,0.00010637,2]
[404370820,1770082243275,-1371.02236342,0.00010637,2]
[404370821,1770082243294,-745.19208607,0.00010637,2]
[404370822,1770082243313,-693.72276123,0.00010637,2]
[404370823,1770082243322,-1244.78854,0.00010698,2]
[404370824,1770082243332,-268.67078659,0.000107,2]
[404370825,1770082243342,-1083.24,0.00010747,2]
[404370826,1770082243351,-1029.34213251,0.000108,2]
[404370827,1770082243361,-500.0,0.00010802,2]
[404370828,1770082243370,-5692.13867723,0.000109,2]
[404370829,1770082243380,-5692.13867723,0.000109,2]
[404370830,1770082243389,-670394.2736237,0.00010913,2]
[404370831,1770082243399,-500.0,0.00010959,2]
[404370832,1770082243408,-150.0,0.00010959,2]
[404370833,1770082243417,-394.84,0.00010994,2]
[404370834,1770082243427,-1083.24,0.00011021,2]
[404370835,1770082243437,-500.0,0.00011076,2]
[404370836,1770082243447,-151.0,0.00011096,2]
[404370837,1770082243456,-200.0,0.00011096,2]
[404370838,1770082243466,-500.0,0.00011096,2]
[404370839,1770082243475,-200.0,0.00011096,2]
[404370840,1770082243484,-1636.55284034,0.00011098,3]
[404370841,1770082243494,-52116.66078661,0.00011099,2]
[404370842,1770082243504,-52116.66078661,0.00011099,2]
[404370843,1770082243514,-52116.66078661,0.00011099,2]
[404370844,1770082243523,-52116.66078661,0.00011099,2]
[404370845,1770082243534,-52116.66078661,0.00011099,2]
[404370846,1770082243543,-52116.66078661,0.00011099,2]
[404370847,1770082243553,-52116.66078661,0.00011099,2]
[404370848,1770082243562,-52116.66078661,0.00011099,2]
[404370849,1770082243572,-52116.66078661,0.00011099,2]
[404370850,1770082243581,-52116.66078661,0.00011099,2]
[404370851,1770082243591,-42445.84163602,0.00011099,2]
[404370852,1770082243600,-42445.841636,0.00011099,2]
[404370853,1770082243609,-42445.841636,0.00011099,2]
[404370854,1770082243619,-42445.841636,0.00011099,2]
[404370855,1770082243628,-42445.841636,0.00011099,2]
[404370856,1770082243643,-42445.841636,0.00011099,2]
[404370857,1770082243653,-42445.841636,0.00011099,2]
[404370858,1770082243662,-42445.841636,0.00011099,2]
[404370859,1770082243671,-1500.0,0.0001117,2]
[404370860,1770082243680,-1500.0,0.0001117,2]
[404370861,1770082243689,-576.084771,0.0001117,2]
[404370862,1770082243698,-1500.0,0.0001117,2]
[404370863,1770082243708,-1500.0,0.0001117,2]
[404370864,1770082243717,-1500.0,0.0001117,2]
[404370865,1770082243726,-1584.52493025,0.0001117,2]
[404370866,1770082243735,-1500.0,0.0001117,2]
[404370867,1770082243746,-345.40864898,0.0001117,2]
[404370868,1770082243755,-1500.0,0.0001117,2]
[404370869,1770082243764,-1500.0,0.0001117,2]
[404370870,1770082243773,-1500.0,0.0001117,2]
[404370871,1770082243787,-1500.0,0.0001117,2]
[404370872,1770082243802,-1500.0,0.0001117,2]
[404370873,1770082243815,-1500.0,0.0001117,2]
[404370874,1770082243826,-551.62801628,0.0001117,2]
[404370875,1770082243835,-241.5,0.00011222,2]
[404370876,1770082243844,-20153.15,0.00011233,2]
[404370877,1770082243854,-42445.841636,0.00011281,2]
[404370878,1770082243864,-1083.24,0.00011295,2]
[404370879,1770082243873,-5692.13867723,0.0001131,2]
[404370880,1770082243883,-500.0,0.0001135,2]
[404370881,1770082243892,-150.00826967,0.00011354,2]
[404370882,1770082243902,-149585.1816362,0.00011368,2]
[404370883,1770082243911,-394.84,0.00011473,2]
[404370884,1770082243921,-322.6107,0.00011509,2]
[404370885,1770082243930,-500.0,0.00011509,2]
[404370886,1770082243940,-250.0,0.00011509,2]
[404370887,1770082243949,-500.0,0.00011509,2]
[404370888,1770082243958,-250.0,0.00011509,2]
[404370889,1770082243968,-1428.38747117,0.00011509,2]
[404370890,1770082243977,-250.0,0.00011509,2]
[404370891,1770082243987,-500.0,0.00011509,2]
[404370892,1770082243996,-250.0,0.00011509,2]
[404370893,1770082244005,-250.0,0.00011509,2]
[404370894,1770082244015,-250.0,0.00011509,2]
[404370895,1770082244024,-250.0,0.00011509,2]
[404370896,1770082244033,-500.0,0.00011509,2]
[404370897,1770082244044,-250.0,0.00011509,2]
[404370898,1770082244053,-250.0,0.00011509,2]
[404370899,1770082244062,-250.0,0.00011509,2]
[404370900,1770082244071,-500.0,0.00011509,2]
[404370901,1770082244080,-250.0,0.00011509,2]
[404370902,1770082244090,-250.0,0.00011509,2]
[404370903,1770082244099,-500.0,0.00011509,2]
[404370904,1770082244108,-500.0,0.00011509,2]
[404370905,1770082244118,-250.0,0.00011509,2]
[404370906,1770082244127,-500.0,0.00011509,2]
[404370907,1770082244137,-250.0,0.00011509,2]
[404370908,1770082244147,-209.40437684,0.00011509,2]
[404370909,1770082244156,-500.0,0.00011509,2]
[404370910,1770082244166,-250.0,0.00011509,2]
[404370911,1770082244175,-250.0,0.00011509,2]
[404370912,1770082244185,-500.0,0.00011509,2]
[404370913,1770082244194,-250.0,0.00011509,2]
[404370914,1770082244205,-500.0,0.00011509,2]
[404370915,1770082244215,-578.20924308,0.00011509,2]
[404370916,1770082244225,-174.61919141,0.00011509,2]
[404370917,1770082244235,-721.12765535,0.00011509,2]
[404370918,1770082244247,-209.40437684,0.00011509,2]
[404370919,1770082244256,-859.80605061,0.00011509,2]
[404370920,1770082244265,-151.0,0.00011509,2]
[404370921,1770082244274,-209.40437684,0.00011509,2]
[404370922,1770082244287,-736.0,0.00011544,2]
[404370923,1770082244297,-3292.0,0.00011544,2]
[404370924,1770082244306,-217.15233878,0.00011564,2]
[404370925,1770082244316,-1083.24,0.00011569,2]
[404370926,1770082244328,-250.0,0.00011593,2]
[404370927,1770082244338,-42445.841636,0.00011607,2]
[404370928,1770082244347,-225.18697532,0.00011619,2]
[404370929,1770082244357,-500.0,0.00011624,2]
[404370930,1770082244367,-200.0,0.00011644,2]
[404370931,1770082244377,-500.0,0.00011644,2]
[404370932,1770082244387,-200.0,0.00011644,2]
[404370933,1770082244396,-1617.53493796,0.00011662,2]
[404370934,1770082244405,-160.29771235,0.00011662,2]
[404370935,1770082244414,-233.51889341,0.00011674,2]
[404370936,1770082244424,-4381.07129221,0.00011707,2]
[404370937,1770082244433,-11561.71645546,0.00011707,2]
[404370938,1770082244443,-2000.0,0.00011718,2]
[404370939,1770082244452,-2000.0,0.00011718,2]
[404370940,1770082244462,-2018.57190756,0.00011718,2]
[404370941,1770082244471,-2000.0,0.00011718,2]
[404370942,1770082244481,-2000.0,0.00011718,2]
[404370943,1770082244490,-2000.0,0.00011718,2]
[404370944,1770082244499,-2000.0,0.00011718,2]
[404370945,1770082244509,-2000.0,0.00011718,2]
[404370946,1770082244518,-2000.0,0.00011718,2]
[404370947,1770082244529,-2000.0,0.00011718,2]
[404370948,1770082244538,-2000.0,0.00011718,2]
[404370949,1770082244548,-509.37664533,0.00011718,2]
[404370950,1770082244557,-242.15909246,0.00011729,2]
[404370951,1770082244566,-251.11897888,0.00011784,2]
[404370952,1770082244575,-260.4103811,0.00011839,2]
[404370953,1770082244584,-1083.24,0.00011843,2]
[404370954,1770082244594,-270.0455652,0.00011894,2]
[404370955,1770082244604,-500.0,0.00011898,2]
[404370956,1770082244613,-151.0,0.00011914,2]
[404370957,1770082244622,-280.03725112,0.00011949,2]
[404370958,1770082244631,-394.84,0.00011951,2]
[404370959,1770082244641,-290.39862941,0.00012004,2]
[404370960,1770082244650,-1481.23780761,0.00012057,2]
[404370961,1770082244659,-217.15233878,0.00012057,2]
[404370962,1770082244672,-181.08010149,0.00012057,2]
[404370963,1770082244682,-276.99112212,0.00012057,2]
[404370964,1770082244691,-151.0,0.00012057,2]
[404370965,1770082244700,-301.1433787,0.00012059,2]
[404370966,1770082244710,-151.0,0.00012092,2]
[404370967,1770082244719,-151.0,0.00012092,2]
[404370968,1770082244729,-151.0,0.00012095,2]
[404370969,1770082244738,-151.0,0.00012095,2]
[404370970,1770082244748,-151.0,0.00012101,2]
[404370971,1770082244757,-151.0,0.00012101,2]
[404370972,1770082244767,-1083.24,0.00012117,2]
[404370973,1770082244777,-2585.94,0.00012138,2]
[404370974,1770082244790,-500.0,0.00012172,2]
[404370975,1770082244800,-200.0,0.00012192,2]
[404370976,1770082244809,-500.0,0.00012192,2]
[404370977,1770082244818,-208.65826531,0.00012192,2]
[404370978,1770082244829,-171.19037679,0.00012266,2]
[404370979,1770082244839,-2500.0,0.00012266,2]
[404370980,1770082244849,-1456.63226471,0.00012266,2]
[404370981,1770082244861,-866.8461726,0.00012266,2]
[404370982,1770082244871,-2309.50611672,0.00012266,2]
[404370983,1770082244881,-2500.0,0.00012266,2]
[404370984,1770082244890,-2500.0,0.00012266,2]
[404370985,1770082244899,-973.78998774,0.00012266,2]
[404370986,1770082244909,-2028.64684013,0.00012266,2]
[404370987,1770082244918,-2500.0,0.00012266,2]
[404370988,1770082244927,-151.0,0.00012286,2]
[404370989,1770082244937,-151.0,0.00012286,2]
[404370990,1770082244946,-1083.24,0.00012391,2]
[404370991,1770082244956,-394.84,0.00012429,2]
[404370992,1770082244965,-241.5,0.00012573,2]
[404370993,1770082244974,-1536.04360649,0.00012605,2]
[404370994,1770082244984,-225.18697532,0.00012605,2]
[404370995,1770082244994,-187.78006525,0.00012605,2]
[404370996,1770082245003,-151.0,0.00012605,2]
[404370997,1770082245012,-5692.13867723,0.00012628,2]
[404370998,1770082245022,-1083.24,0.00012665,2]
[404370999,1770082245031,-193705.37119555,0.0001269,2]
[404371000,1770082245041,-1252.0,0.00012697,2]
[404371001,1770082245050,-4609.0,0.00012698,2]
[404371002,1770082245059,-200.0,0.0001274,2]
[404371003,1770082245068,-500.0,0.0001274,2]
[404371004,1770082245079,-542.2584521,0.00012814,2]
[404371005,1770082245088,-3000.0,0.00012814,2]
[404371006,1770082245320,-3000.0,0.00012814,2]
[404371007,1770082245330,-1003.8217727,0.00012814,2]
[404371008,1770082245340,-334.5472959,0.00012878,2]
[404371009,1770082245349,-394.84,0.00012907,2]
[404371010,1770082245359,-1083.24,0.00012939,2]
[404371011,1770082245368,-4433.94000455,0.00013,2]
[404371012,1770082245377,-5353.89966494,0.0001305,2]
[404371013,1770082245387,-1592.87721993,0.00013153,2]
[404371014,1770082245396,-233.51889341,0.00013153,2]
[404371015,1770082245405,-194.72792766,0.00013153,2]
[404371016,1770082245415,-151.0,0.00013153,2]
[404371017,1770082245423,-1083.24,0.00013213,2]
[404371018,1770082245433,-20396.23828147,0.00013257,2]
[404371019,1770082245442,-173.42596126,0.00013287,2]
[404371020,1770082245451,-200.0,0.00013288,2]
[404371021,1770082245461,-500.0,0.00013288,2]
[404371022,1770082245470,-1000.0,0.00013362,2]
[404371023,1770082245479,-3500.0,0.00013362,2]
[404371024,1770082245489,-3240.0,0.00013425,2]
[404371025,1770082245498,-1083.24,0.00013487,2]
[404371026,1770082245507,-183.76045452,0.000135,2]
[404371027,1770082245517,-500.0,0.00013616,2]
[404371028,1770082245526,-151.0,0.00013695,2]
[404371030,1770082245536,-1636.55284035,0.00013697,3]
[404371031,1770082245545,-519.2350024,0.00013698,2]
[404371032,1770082245554,-272.39317181,0.00013698,2]
[404371033,1770082245563,-500.0,0.00013698,2]
[404371034,1770082245571,-500.0,0.00013698,2]
[404371035,1770082245581,-500.0,0.00013698,2]
[404371036,1770082245590,-500.0,0.00013698,2]
[404371037,1770082245598,-500.0,0.00013698,2]
[404371038,1770082245607,-500.0,0.00013698,2]
[404371039,1770082245616,-500.0,0.00013698,2]
[404371040,1770082245624,-500.0,0.00013698,2]
[404371041,1770082245633,-392.76776902,0.00013698,2]
[404371042,1770082245642,-500.0,0.00013698,2]
[404371043,1770082245651,-500.0,0.00013698,2]
[404371044,1770082245660,-498.18098087,0.00013698,2]
[404371045,1770082245669,-500.0,0.00013698,2]
[404371046,1770082245678,-500.0,0.00013698,2]
[404371047,1770082245687,-500.0,0.00013698,2]
[404371048,1770082245697,-500.0,0.00013698,2]
[404371049,1770082245706,-500.0,0.00013698,2]
[404371050,1770082245715,-500.0,0.00013698,2]
[404371051,1770082245724,-500.0,0.00013698,2]
[404371052,1770082245733,-500.0,0.00013698,2]
[404371053,1770082245742,-500.0,0.00013698,2]
[404371054,1770082245751,-500.0,0.00013698,2]
[404371055,1770082245761,-500.0,0.00013698,2]
[404371056,1770082245770,-500.0,0.00013698,2]
[404371057,1770082245783,-500.0,0.00013698,2]
[404371058,1770082245793,-500.0,0.00013698,2]
[404371059,1770082245801,-500.0,0.00013698,2]
[404371060,1770082245810,-500.0,0.00013698,2]
[404371061,1770082245819,-500.0,0.00013698,2]
[404371062,1770082245830,-500.0,0.00013698,2]
[404371063,1770082245840,-500.0,0.00013698,2]
[404371064,1770082245850,-500.0,0.00013698,2]
[404371065,1770082245860,-500.0,0.00013698,2]
[404371066,1770082245870,-500.0,0.00013698,2]
[404371067,1770082245879,-500.0,0.00013698,2]
[404371069,1770082245889,-500.0,0.00013698,2]
[404371071,1770082245898,-500.0,0.00013698,2]
[404371073,1770082245907,-500.0,0.00013698,2]
[404371075,1770082245916,-500.0,0.00013698,2]
[404371077,1770082245925,-500.0,0.00013698,2]
[404371080,1770082245935,-500.0,0.00013698,2]
[404371082,1770082245944,-239.79549484,0.00013698,2]
[404371084,1770082245953,-500.0,0.00013698,2]
[404371086,1770082245964,-500.0,0.00013698,2]
[404371088,1770082245973,-500.0,0.00013698,2]
[404371090,1770082245981,-500.0,0.00013698,2]
[404371092,1770082245992,-500.0,0.00013698,2]
[404371094,1770082246001,-500.0,0.00013698,2]
[404371096,1770082246009,-500.0,0.00013698,2]
[404371098,1770082246020,-500.0,0.00013698,2]
[404371100,1770082246028,-500.0,0.00013698,2]
[404371102,1770082246038,-500.0,0.00013698,2]
[404371104,1770082246047,-500.0,0.00013698,2]
[404371106,1770082246055,-453.81105922,0.00013698,2]
[404371108,1770082246064,-500.0,0.00013698,2]
[404371110,1770082246074,-500.0,0.00013698,2]
[404371112,1770082246082,-500.0,0.00013698,2]
[404371114,1770082246091,-500.0,0.00013698,2]
[404371115,1770082246101,-500.0,0.00013698,2]
[404371117,1770082246110,-500.0,0.00013698,2]
[404371119,1770082246119,-510.82232822,0.00013698,2]
[404371121,1770082246128,-846.12,0.00013698,2]
[404371123,1770082246137,-846.12,0.00013698,2]
[404371124,1770082246147,-846.12,0.00013698,2]
[404371125,1770082246157,-846.12,0.00013698,2]
[404371126,1770082246167,-846.12,0.00013698,2]
[404371127,1770082246177,-846.12,0.00013698,2]
[404371128,1770082246187,-846.12,0.00013698,2]
[404371129,1770082246198,-846.12,0.00013698,2]
[404371131,1770082246207,-500.0,0.00013698,2]
[404371133,1770082246216,-846.12,0.00013698,2]
[404371134,1770082246225,-500.0,0.00013698,2]
[404371136,1770082246236,-846.12,0.00013698,2]
[404371138,1770082246246,-500.0,0.00013698,2]
[404371140,1770082246256,-846.12,0.00013698,2]
[404371142,1770082246265,-500.0,0.00013698,2]
[404371144,1770082246274,-846.12,0.00013698,2]
[404371146,1770082246283,-500.0,0.00013698,2]
[404371149,1770082246296,-846.12,0.00013698,2]
[404371150,1770082246305,-500.0,0.00013698,2]
[404371152,1770082246314,-846.12,0.00013698,2]
[404371154,1770082246323,-500.0,0.00013698,2]
[404371156,1770082246333,-846.12,0.00013698,2]
[404371158,1770082246342,-500.0,0.00013698,2]
[404371160,1770082246350,-846.12,0.00013698,2]
[404371162,1770082246360,-500.0,0.00013698,2]
[404371164,1770082246369,-846.12,0.00013698,2]
[404371167,1770082246379,-500.0,0.00013698,2]
[404371168,1770082246388,-846.12,0.00013698,2]
[404371171,1770082246399,-500.0,0.00013698,2]
[404371173,1770082246409,-846.12,0.00013698,2]
[404371174,1770082246418,-500.0,0.00013698,2]
[404371176,1770082246428,-846.12,0.00013698,2]
[404371178,1770082246437,-500.0,0.00013698,2]
[404371180,1770082246446,-846.12,0.00013698,2]
[404371182,1770082246455,-500.0,0.00013698,2]
[404371184,1770082246464,-846.12,0.00013698,2]
[404371186,1770082246474,-500.0,0.00013698,2]
[404371188,1770082246483,-846.12,0.00013698,2]
[404371189,1770082246492,-500.0,0.00013698,2]
[404371190,1770082246502,-846.2298754,0.00013698,2]
[404371191,1770082246511,-500.0,0.00013698,2]
[404371192,1770082246520,-500.0,0.00013698,2]
[404371193,1770082246529,-500.0,0.00013698,2]
[404371194,1770082246539,-317.29293236,0.00013698,2]
[404371195,1770082246548,-670.62,0.00013698,2]
[404371196,1770082246557,-670.62,0.00013698,2]
[404371197,1770082246566,-670.62,0.00013698,2]
[404371198,1770082246576,-670.62,0.00013698,2]
[404371199,1770082246585,-670.62,0.00013698,2]
[404371200,1770082246595,-670.62,0.00013698,2]
[404371201,1770082246605,-670.62,0.00013698,2]
[404371202,1770082246614,-670.62,0.00013698,2]
[404371203,1770082246623,-670.62,0.00013698,2]
[404371204,1770082246632,-670.62,0.00013698,2]
[404371205,1770082246641,-670.62,0.00013698,2]
[404371206,1770082246650,-670.62,0.00013698,2]
[404371207,1770082246659,-670.62,0.00013698,2]
[404371208,1770082246668,-670.62,0.00013698,2]
[404371209,1770082246677,-670.62,0.00013698,2]
[404371210,1770082246686,-670.62,0.00013698,2]
[404371211,1770082246695,-670.62,0.00013698,2]
[404371212,1770082246704,-670.62,0.00013698,2]
[404371213,1770082246713,-670.62,0.00013698,2]
[404371214,1770082246724,-670.62,0.00013698,2]
[404371215,1770082246733,-670.62,0.00013698,2]
[404371216,1770082246742,-670.62,0.00013698,2]
[404371217,1770082246751,-670.62,0.00013698,2]
[404371218,1770082246760,-670.63670735,0.00013698,2]
[404371219,1770082246769,-500.0,0.00013698,2]
[404371220,1770082246782,-500.0,0.00013698,2]
[404371221,1770082246791,-500.0,0.00013698,2]
[404371222,1770082246800,-500.0,0.00013698,2]
[404371223,1770082246809,-500.0,0.00013698,2]
[404371224,1770082246818,-500.0,0.00013698,2]
[404371225,1770082246829,-500.0,0.00013698,2]
[404371226,1770082246838,-500.0,0.00013698,2]
[404371227,1770082246848,-500.0,0.00013698,2]
[404371228,1770082246858,-500.0,0.00013698,2]
[404371229,1770082246867,-500.0,0.00013698,2]
[404371230,1770082246878,-431.16604066,0.00013698,2]
[404371231,1770082246888,-500.0,0.00013698,2]
[404371232,1770082246897,-500.0,0.00013698,2]
[404371233,1770082246906,-500.0,0.00013698,2]
[404371234,1770082246915,-500.0,0.00013698,2]
[404371235,1770082246924,-500.0,0.00013698,2]
[404371236,1770082246933,-500.0,0.00013698,2]
[404371237,1770082246942,-500.0,0.00013698,2]
[404371238,1770082246951,-500.0,0.00013698,2]
[404371239,1770082246959,-500.0,0.00013698,2]
[404371240,1770082246968,-500.0,0.00013698,2]
[404371241,1770082246977,-378.11080496,0.00013698,2]
[404371242,1770082246986,-500.0,0.00013698,2]
[404371243,1770082246996,-500.0,0.00013698,2]
[404371244,1770082247006,-500.0,0.00013698,2]
[404371245,1770082247018,-500.0,0.00013698,2]
[404371246,1770082247031,-500.0,0.00013698,2]
[404371247,1770082247046,-500.0,0.00013698,2]
[404371248,1770082247059,-500.0,0.00013698,2]
[404371249,1770082247069,-500.0,0.00013698,2]
[404371250,1770082247082,-500.0,0.00013698,2]
[404371251,1770082247096,-500.0,0.00013698,2]
[404371252,1770082247110,-734.77,0.00013698,2]
[404371253,1770082247124,-734.77,0.00013698,2]
[404371254,1770082247139,-734.77,0.00013698,2]
[404371255,1770082247152,-734.77,0.00013698,2]
[404371256,1770082247165,-734.77,0.00013698,2]
[404371257,1770082247177,-734.77,0.00013698,2]
[404371258,1770082247188,-734.77,0.00013698,2]
[404371259,1770082247202,-734.77,0.00013698,2]
[404371260,1770082247215,-734.77,0.00013698,2]
[404371261,1770082247227,-734.77,0.00013698,2]
[404371262,1770082247239,-734.77,0.00013698,2]
[404371263,1770082247252,-734.77,0.00013698,2]
[404371264,1770082247266,-734.77,0.00013698,2]
[404371265,1770082247280,-500.0,0.00013698,2]
[404371266,1770082247292,-500.0,0.00013698,2]
[404371267,1770082247305,-500.0,0.00013698,2]
[404371268,1770082247318,-500.0,0.00013698,2]
[404371269,1770082247331,-500.0,0.00013698,2]
[404371270,1770082247343,-500.0,0.00013698,2]
[404371271,1770082247356,-500.0,0.00013698,2]
[404371272,1770082247368,-500.0,0.00013698,2]
[404371273,1770082247380,-500.0,0.00013698,2]
[404371274,1770082247393,-500.0,0.00013698,2]
[404371275,1770082247407,-500.0,0.00013698,2]
[404371276,1770082247420,-500.0,0.00013698,2]
[404371277,1770082247432,-500.0,0.00013698,2]
[404371278,1770082247444,-1495.54,0.00013698,2]
[404371279,1770082247454,-1495.54,0.00013698,2]
[404371280,1770082247465,-1495.54,0.00013698,2]
[404371281,1770082247477,-1495.54,0.00013698,2]
[404371282,1770082247492,-1495.54,0.00013698,2]
[404371283,1770082247505,-1495.54,0.00013698,2]
[404371284,1770082247516,-1495.54,0.00013698,2]
[404371285,1770082247526,-1495.54,0.00013698,2]
[404371286,1770082247537,-1495.54,0.00013698,2]
[404371287,1770082247550,-1495.54,0.00013698,2]
[404371288,1770082247564,-1495.54,0.00013698,2]
[404371289,1770082247577,-1495.54,0.00013698,2]
[404371290,1770082247587,-1495.54,0.00013698,2]
[404371291,1770082247598,-1495.54,0.00013698,2]
[404371292,1770082247607,-1495.54,0.00013698,2]
[404371293,1770082247619,-1495.54,0.00013698,2]
[404371294,1770082247630,-1495.54,0.00013698,2]
[404371295,1770082247641,-1495.54,0.00013698,2]
[404371296,1770082247651,-1495.54,0.00013698,2]
[404371297,1770082247663,-1495.54,0.00013698,2]
[404371298,1770082247674,-1495.54,0.00013698,2]
[404371299,1770082247685,-1495.54,0.00013698,2]
[404371300,1770082247697,-1495.54,0.00013698,2]
[404371301,1770082247707,-1495.69680468,0.00013698,2]
[404371302,1770082247721,-500.0,0.00013698,2]
[404371303,1770082247732,-500.0,0.00013698,2]
[404371304,1770082247746,-500.0,0.00013698,2]
[404371305,1770082247760,-500.0,0.00013698,2]
[404371306,1770082247772,-500.0,0.00013698,2]
[404371307,1770082247789,-500.0,0.00013698,2]
[404371308,1770082247803,-500.0,0.00013698,2]
[404371309,1770082247815,-500.0,0.00013698,2]
[404371310,1770082247828,-500.0,0.00013698,2]
[404371311,1770082247839,-500.0,0.00013698,2]
[404371312,1770082247851,-500.0,0.00013698,2]
[404371313,1770082247865,-500.0,0.00013698,2]
[404371314,1770082247877,-500.0,0.00013698,2]
[404371315,1770082247888,-500.0,0.00013698,2]
[404371316,1770082247901,-500.0,0.00013698,2]
[404371317,1770082247913,-500.0,0.00013698,2]
[404371318,1770082247925,-500.0,0.00013698,2]
[404371319,1770082247938,-500.0,0.00013698,2]
[404371320,1770082247950,-500.0,0.00013698,2]
[404371321,1770082247962,-500.0,0.00013698,2]
[404371322,1770082247975,-500.0,0.00013698,2]
[404371323,1770082247986,-346.60986891,0.00013698,2]
[404371324,1770082248001,-554.70150285,0.00013698,2]
[404371325,1770082248016,-649.5,0.00013698,2]
[404371326,1770082248028,-649.5,0.00013698,2]
[404371327,1770082248041,-649.5,0.00013698,2]
[404371328,1770082248054,-649.5,0.00013698,2]
[404371329,1770082248068,-649.5,0.00013698,2]
[404371330,1770082248080,-649.5,0.00013698,2]
[404371331,1770082248091,-649.5,0.00013698,2]
[404371332,1770082248102,-649.5,0.00013698,2]
[404371333,1770082248115,-649.5,0.00013698,2]
[404371334,1770082248127,-649.5,0.00013698,2]
[404371335,1770082248138,-649.5,0.00013698,2]
[404371336,1770082248151,-649.5,0.00013698,2]
[404371337,1770082248163,-649.5,0.00013698,2]
[404371338,1770082248174,-649.5,0.00013698,2]
[404371339,1770082248185,-649.5,0.00013698,2]
[404371340,1770082248196,-649.5,0.00013698,2]
[404371341,1770082248208,-649.5,0.00013698,2]
[404371342,1770082248220,-649.5,0.00013698,2]
[404371343,1770082248232,-649.5,0.00013698,2]
[404371344,1770082248244,-649.5,0.00013698,2]
[404371345,1770082248254,-649.5,0.00013698,2]
[404371346,1770082248265,-649.5,0.00013698,2]
[404371347,1770082248276,-649.5,0.00013698,2]
[404371348,1770082248287,-649.56083377,0.00013698,2]
[404371349,1770082248298,-646.39442601,0.00013698,2]